fUST/lending_fUST_20250915
["ID","MTS","AMOUNT","RATE_DAILY","PERIOD"]
[385464015,1757869843759,-480.0,0.00021917,2]
[385464017,1757869843768,-480.0,0.00021917,2]
[385464019,1757869843778,-1703.73,0.00021917,2]
[385464020,1757869843787,-480.0,0.00021917,2]
[385464021,1757869843798,-480.0,0.00021917,2]
[385464022,1757869843808,-480.0,0.00021917,2]
[385464023,1757869843817,-1074.762911,0.00021917,2]
[385464024,1757869843826,-480.0,0.00021917,2]
[385464025,1757869843836,-1074.762911,0.00021917,2]
[385464026,1757869843845,-480.0,0.00021917,2]
[385464027,1757869843854,-480.0,0.00021917,2]
[385464028,1757869843864,-480.0,0.00021917,2]
[385464029,1757869843873,-1074.762911,0.00021917,2]
[385464030,1757869843882,-482.56057162,0.00021917,2]
[385464031,1757869843892,-151.0,0.00021917,2]
[385464032,1757869843902,-151.0,0.00021917,2]
[385464033,1757869843912,-151.0,0.00021917,2]
[385464034,1757869843922,-1074.762911,0.00021917,2]
[385464035,1757869843931,-480.0,0.00021917,2]
[385464036,1757869843941,-480.0,0.00021917,2]
[385464037,1757869843951,-151.0,0.00021917,2]
[385464038,1757869843960,-151.0,0.00021917,2]
[385464039,1757869843970,-480.0,0.00021917,2]
[385464040,1757869843980,-480.0,0.00021917,2]
[385464041,1757869843989,-480.0,0.00021917,2]
[385464042,1757869843999,-480.0,0.00021917,2]
[385464043,1757869844009,-480.0,0.00021917,2]
[385464044,1757869844019,-480.0,0.00021917,2]
[385464045,1757869844029,-480.0,0.00021917,2]
[385464046,1757869844039,-480.0,0.00021917,2]
[385464047,1757869844052,-482.63726045,0.00021917,2]
[385464048,1757869844061,-151.0,0.00021917,2]
[385464049,1757869844072,-151.0,0.00021917,2]
[385464050,1757869844081,-237.564672,0.00021917,2]
[385464051,1757869844090,-480.0,0.00021917,2]
[385464052,1757869844099,-480.0,0.00021917,2]
[385464053,1757869844108,-61.819676,0.00021917,2]
[385464054,1757869844121,-418.180324,0.00021917,2]
[385464055,1757869844130,-480.0,0.00021917,2]
[385464056,1757869844141,-684.209676,0.00021917,2]
[385464057,1757869844374,-329.46204189,0.00021398,2]
[385464058,1757869844385,-1020.55924771,0.00021398,2]
[385464059,1757869844409,-420.73348553,0.00021398,2]
[385464060,1757869844421,-3229.24522487,0.00021398,2]
[385464061,1757869844431,-598.770324,0.00021917,2]
[385464062,1757869844440,-480.0,0.00021917,2]
[385464063,1757869844449,-480.0,0.00021917,2]
[385464064,1757869844459,-480.0,0.00021917,2]
[385464065,1757869844468,-152.062209,0.00021917,2]
[385464066,1757869844478,-480.0,0.00021917,2]
[385464067,1757869844487,-480.0,0.00021917,2]
[385464068,1757869844497,-480.0,0.00021917,2]
[385464069,1757869844506,-2558.53,0.00021917,2]
[385464070,1757869844516,-480.0,0.00021917,2]
[385464071,1757869844525,-480.0,0.00021917,2]
[385464072,1757869844534,-486.91967662,0.00021917,2]
[385464073,1757869844543,-480.0,0.00021917,2]
[385464074,1757869844553,-151.0,0.00021917,2]
[385464075,1757869844562,-480.0,0.00021917,2]
[385464076,1757869844571,-480.0,0.00021917,2]
[385464077,1757869844580,-480.0,0.00021917,2]
[385464078,1757869844589,-480.0,0.00021917,2]
[385464079,1757869844598,-480.0,0.00021917,2]
[385464080,1757869844607,-480.0,0.00021917,2]
[385464081,1757869844617,-1298.37,0.00021917,2]
[385464082,1757869844627,-480.0,0.00021917,2]
[385464083,1757869844636,-480.0,0.00021917,2]
[385464084,1757869844646,-480.0,0.00021917,2]
[385464085,1757869844656,-480.0,0.00021917,2]
[385464086,1757869844666,-480.0,0.00021917,2]
[385464087,1757869844675,-480.0,0.00021917,2]
[385464088,1757869844685,-480.0,0.00021917,2]
[385464089,1757869844695,-480.0,0.00021917,2]
[385464090,1757869844704,-480.0,0.00021917,2]
[385464091,1757869844713,-151.0,0.00021917,2]
[385464092,1757869844723,-151.0,0.00021917,2]
[385464093,1757869844732,-480.0,0.00021917,2]
[385464094,1757869844742,-480.0,0.00021917,2]
[385464095,1757869844751,-151.0,0.00021917,2]
[385464096,1757869844761,-151.0,0.00021917,2]
[385464097,1757869844770,-1054.56,0.00021917,2]
[385464098,1757869844779,-1502.68506835,0.00021917,2]
[385464102,1757869846585,-781.50493165,0.00021917,2]
[385464103,1757869846594,-480.0,0.00021917,2]
[385464104,1757869846603,-681.24,0.00021917,2]
[385464105,1757869846612,-480.0,0.00021917,2]
[385464106,1757869846621,-635.54,0.00021917,2]
[385464107,1757869846630,-1339.93,0.00021917,2]
[385464108,1757869846639,-549.68,0.00021917,2]
[385464109,1757869846650,-480.0,0.00021917,2]
[385464110,1757869846660,-480.0,0.00021917,2]
[385464111,1757869846669,-480.0,0.00021917,2]
[385464112,1757869846679,-114.75896765,0.00021917,2]
[385464114,1757869911358,1726.35712512,0.000199,2]
[385464120,1757870060713,483.42616672,0.0002012,2]
[385464121,1757870060735,4048.05005698,0.0002012,2]
[385464129,1757870091372,1668.81188779,0.000199,2]
[385464131,1757870272470,1613.18482468,0.000199,2]
[385464136,1757870434413,-336.741664,0.0002025,2]
[385464137,1757870454467,-1996.47990255,0.00020595,2]
[385464138,1757870454799,1559.41199721,0.000199,2]
[385464139,1757870464429,-300.0,0.00020594,2]
[385464140,1757870464461,-9400.01,0.00020595,2]
[385464141,1757870494491,-1396.47990255,0.00020595,2]
[385464142,1757870494518,-7207.0501949,0.00020595,2]
[385464143,1757870521596,-191.791733,0.00020669,2]
[385464144,1757870521624,-4135.4191123,0.00020877,2]
[385464145,1757870521652,-273.87853438,0.00020951,2]
[385464146,1757870521683,-300.0,0.00021006,20]
[385464147,1757870521817,-300.0,0.00021006,20]
[385464148,1757870521848,-300.0,0.00021006,20]
[385464149,1757870521880,-300.0,0.00021006,20]
[385464150,1757870521910,-300.0,0.00021006,20]
[385464151,1757870521942,-300.0,0.00021006,20]
[385464152,1757870521974,-300.0,0.00021006,20]
[385464153,1757870522010,-300.0,0.00021006,20]
[385464154,1757870522040,-300.0,0.00021006,20]
[385464155,1757870522071,-300.0,0.00021006,20]
[385464156,1757870522102,-300.0,0.00021006,20]
[385464157,1757870522131,-300.0,0.00021006,20]
[385464158,1757870522161,-300.0,0.00021006,20]
[385464159,1757870522191,-300.0,0.00021006,20]
[385464160,1757870522222,-300.0,0.00021006,20]
[385464161,1757870522527,-197.83124064,0.00021006,2]
[385464162,1757870522540,-1600.01,0.00021006,2]
[385464164,1757870527829,-300.0,0.00021005,2]
[385464165,1757870527864,-9400.01,0.00021006,2]
[385464166,1757870527954,-596.16759064,0.00021006,2]
[385464167,1757870527978,-8807.67481872,0.00021006,2]
[385464169,1757870636389,1554.5899607,0.000199,2]
[385464173,1757870818391,1502.77029544,0.000199,2]
[385464174,1757870824031,800.0,0.0002739,120]
[385464175,1757870831202,800.0,0.0002739,120]
[385464176,1757870920962,212.3336874,0.00016,2]
[385464177,1757870924213,6730.31605646,0.00014,2]
[385464178,1757870924236,10000.01,0.00014,2]
[385464179,1757870924258,10000.01,0.00014,2]
[385464180,1757870924280,5611.47278258,0.00014,2]
[385464182,1757870999202,1495.24947032,0.000199,2]
[385464183,1757871004521,893.09622489,0.0001978,2]
[385464184,1757871007253,2000.19152221,0.0001978,2]
[385464185,1757871007274,1568.62099243,0.0001978,2]
[385464208,1757871033653,-300.0,0.0002082,2]
[385464209,1757871033664,-231.01285871,0.0002082,2]
[385464210,1757871033678,-968.98714129,0.0002082,2]
[385464211,1757871033690,-3370.57295137,0.00020821,2]
[385464212,1757871033701,-1328.5269461,0.00021021,2]
[385464213,1757871033712,-1495.24947008,0.00021149,2]
[385464214,1757871033723,-600.0,0.00021425,20]
[385464215,1757871033734,-169.0,0.00021452,2]
[385464216,1757871033745,-427.50084387,0.00021474,2]
[385464217,1757871033756,-188.5479816,0.000215,2]
[385464218,1757871033767,-188.5479816,0.000215,2]
[385464219,1757871033778,-188.5479816,0.000215,2]
[385464220,1757871033789,-708.4595882,0.00021616,2]
[385464221,1757871033800,-500.0,0.00021716,2]
[385464222,1757871033811,-271.56881844,0.00021716,2]
[385464223,1757871033822,-271.88729765,0.00021716,2]
[385464224,1757871033833,-10058.65833363,0.00021717,2]
[385464225,1757871033846,-9205.99999984,0.00021717,2]
[385464248,1757871040679,-265.6294684,0.0002072,2]
[385464249,1757871040689,-8863.3461212,0.00021717,2]
[385464250,1757871040736,-2642.28626944,0.00021717,2]
[385464251,1757871040748,-1176.73912595,0.00021717,2]
[385464252,1757871040763,-720.88821249,0.00021717,2]
[385464253,1757871040772,-155.38373847,0.00021767,2]
[385464254,1757871040793,-116.50355916,0.00021767,2]
[385464255,1757871040803,-847.27885267,0.00021809,2]
[385464256,1757871040812,-160.0,0.00021809,2]
[385464257,1757871040822,-160.0,0.00021809,2]
[385464258,1757871040831,-312.01758817,0.00021809,2]
[385464301,1757871042938,-219.21458449,0.00021809,2]
[385464302,1757871042947,-105.46133951,0.00021809,2]
[385464303,1757871042959,-112.31605988,0.00021809,2]
[385464304,1757871042968,-160.0,0.00021809,2]
[385464305,1757871042977,-233.1999649,0.00021809,2]
[385464306,1757871042987,-1922.96070523,0.00021817,2]
[385464396,1757871045948,-23557.15131524,0.00021817,2]
[385464397,1757871045958,-271.88729763,0.00021817,2]
[385464398,1757871045968,-9591.59038901,0.00021817,2]
[385464399,1757871045978,-346.60424211,0.00021817,2]
[385464400,1757871147400,1000.0,0.00030374,50]
[385464401,1757871156405,1002.29,0.00030374,50]
[385464403,1757871196214,1618.0227789,0.000199,2]
[385464408,1757871385215,1564.08868627,0.000199,2]
[385464409,1757871426439,-198.00128703,0.00020515,2]
[385464410,1757871436572,-4859.55049132,0.00020734,2]
[385464411,1757871436668,-10000.01,0.00020734,2]
[385464412,1757871446455,-10000.01,0.00020734,2]
[385464413,1757871456469,-5000.0,0.00020527,2]
[385464414,1757871456509,-0.01,0.00020734,2]
[385464415,1757871456579,-10000.01,0.00020734,2]
[385464416,1757871473064,4588.05191984,0.0002012,2]
[385464419,1757871573928,1512.16158074,0.000199,2]
[385464422,1757871655258,2088.05192001,0.0002012,2]
[385464423,1757871755232,1461.75619487,0.000199,2]
[385464425,1757871899823,1106.000001,0.00030375,54]
[385464426,1757871907543,-265.62946839,0.00020634,2]
[385464427,1757871907572,-1200.0,0.00020733,2]
[385464428,1757871907601,-531.61656094,0.00020734,2]
[385464429,1757871917478,-3994.49205866,0.00020734,2]
[385464430,1757871937564,-2011.02588268,0.00020734,2]
[385464431,1757871937592,-300.0,0.00020819,2]
[385464432,1757871937620,-300.0,0.00020819,2]
[385464433,1757871937649,-300.0,0.00020819,2]
[385464434,1757871937677,-300.0,0.00020819,2]
[385464435,1757871937704,-1200.0,0.0002082,2]
[385464436,1757871937733,-381.46416724,0.00020821,2]
[385464437,1757871940262,1478.97995364,0.000199,2]
[385464439,1757871957598,-442.75830374,0.00020821,2]
[385464440,1757871957628,-1524.3308123,0.00020821,2]
[385464441,1757871957656,-1390.40997532,0.00020821,2]
[385464442,1757871957684,-156.58937282,0.00020821,2]
[385464443,1757871957786,-1753.38518036,0.00020821,2]
[385464445,1757871987147,2000.0,0.00030375,50]
[385464446,1757871994210,2000.0,0.00030375,50]
[385464448,1757872028059,1000.0,0.00030375,50]
[385464454,1757872123428,1429.68062191,0.000199,2]
[385464481,1757872211320,-193.219979,0.00020161,2]
[385464482,1757872211349,-300.0,0.0002082,2]
[385464483,1757872211376,-300.0,0.0002082,2]
[385464484,1757872211404,-1200.0,0.0002082,2]
[385464485,1757872211431,-300.0,0.0002082,2]
[385464486,1757872211460,-1218.44789128,0.00020821,2]
[385464487,1757872211669,-4443.93173863,0.00020821,2]
[385464488,1757872211746,-1112.14652274,0.00020821,2]
[385464489,1757872211755,-1546.99363753,0.00020821,2]
[385464491,1757872226841,1000.0,0.00024,30]
[385464521,1757872232094,-118.21367477,0.00020821,2]
[385464524,1757872232103,-1749.72047346,0.00020821,2]
[385464546,1757872237982,-1996.99597922,0.00020821,2]
[385464547,1757872237992,-6654.16841997,0.00020821,2]
[385464548,1757872238002,-8674.12743728,0.0002099,2]
[385464549,1757872238011,-152.258297,0.0002104,2]
[385464550,1757872238020,-1429.68062183,0.00021149,2]
[385464551,1757872238029,-633.62474683,0.00021312,2]
[385464552,1757872238039,-25596.3621978,0.00021313,2]
[385464553,1757872238048,-3305.9866322,0.00021313,2]
[385464554,1757872238058,-1589.5498689,0.00021332,2]
[385464555,1757872238068,-168.0,0.00021363,2]
[385464557,1757872238238,-2049.5542076,0.00021535,2]
[385464558,1757872238248,-188.5479816,0.000216,2]
[385464559,1757872238258,-188.5479816,0.000216,2]
[385464560,1757872238268,-800.0,0.00021636,2]
[385464561,1757872238278,-672.93686692,0.00021689,2]
[385464562,1757872238291,-127.06313308,0.00021689,2]
[385464563,1757872238300,-268.34292338,0.00021743,2]
[385464564,1757872238309,-320.68968665,0.0002177,2]
[385464565,1757872238318,-160.0,0.00021793,2]
[385464566,1757872238328,-187.87142361,0.00021804,2]
[385464567,1757872238347,-32.01687994,0.00021804,2]
[385464568,1757872238357,-321.33092452,0.00021816,2]
[385464569,1757872238366,-500.0,0.00021816,2]
[385464570,1757872238375,-162.5233669,0.00021816,2]
[385464571,1757872238385,-500.0,0.00021816,2]
[385464572,1757872238394,-472.51910568,0.00021816,2]
[385464573,1757872238403,-500.0,0.00021816,2]
[385464574,1757872238412,-500.0,0.00021816,2]
[385464575,1757872238421,-500.0,0.00021816,2]
[385464576,1757872238431,-500.0,0.00021816,2]
[385464577,1757872238440,-500.0,0.00021816,2]
[385464578,1757872238450,-160.0,0.00021816,2]
[385464579,1757872238459,-160.0,0.00021816,2]
[385464580,1757872238468,-217.77739939,0.00021816,2]
[385464581,1757872238476,-16239.16965123,0.00021817,2]
[385464589,1757872240097,-15527.30901649,0.00021817,2]
[385464590,1757872240106,-893.99105931,0.00021817,2]
[385464591,1757872240115,-6394.39359266,0.00021817,2]
[385464592,1757872240125,-800.0,0.00021875,2]
[385464593,1757872240135,-893.99105931,0.00021886,2]
[385464594,1757872240144,-368.79,0.00021907,3]
[385464595,1757872240153,-184.39,0.00021907,3]
[385464596,1757872240163,-553.2,0.00021907,3]
[385464597,1757872240172,-155.462,0.00021916,2]
[385464598,1757872240182,-4709.31025424,0.00021917,2]
[385464599,1757872240191,-500.0,0.00021917,2]
[385464601,1757872240201,-480.0,0.00021917,2]
[385464602,1757872240211,-480.0,0.00021917,2]
[385464603,1757872240220,-459.80038483,0.00021917,2]
[385464604,1757872240229,-480.0,0.00021917,2]
[385464605,1757872240238,-480.0,0.00021917,2]
[385464606,1757872240248,-480.0,0.00021917,2]
[385464607,1757872240257,-551.21201223,0.00021917,2]
[385464608,1757872240266,-192.53901039,0.00021917,2]
[385464609,1757872240275,-480.0,0.00021917,2]
[385464610,1757872240285,-151.0,0.00021917,2]
[385464611,1757872240294,-151.0,0.00021917,2]
[385464612,1757872240303,-151.0,0.00021917,2]
[385464613,1757872240312,-480.0,0.00021917,2]
[385464614,1757872240321,-480.0,0.00021917,2]
[385464615,1757872240331,-151.0,0.00021917,2]
[385464616,1757872240339,-480.0,0.00021917,2]
[385464617,1757872240348,-500.0,0.00021917,2]
[385464618,1757872240357,-151.0,0.00021917,2]
[385464619,1757872240367,-151.0,0.00021917,2]
[385464620,1757872240375,-480.0,0.00021917,2]
[385464621,1757872240385,-520.0,0.00021917,3]
[385464622,1757872240394,-480.0,0.00021917,2]
[385464623,1757872240403,-480.0,0.00021917,2]
[385464624,1757872240412,-480.0,0.00021917,2]
[385464625,1757872240422,-480.0,0.00021917,2]
[385464626,1757872240432,-480.0,0.00021917,2]
[385464627,1757872240441,-494.64455495,0.00021917,2]
[385464628,1757872240450,-480.0,0.00021917,2]
[385464629,1757872240459,-432.18291645,0.00021917,2]
[385464630,1757872240468,-480.0,0.00021917,2]
[385464631,1757872240477,-480.0,0.00021917,2]
[385464632,1757872240487,-480.0,0.00021917,2]
[385464633,1757872240496,-480.0,0.00021917,2]
[385464634,1757872240506,-480.0,0.00021917,2]
[385464635,1757872240517,-480.0,0.00021917,2]
[385464636,1757872240526,-200.0,0.00021917,2]
[385464637,1757872240535,-151.0,0.00021917,2]
[385464638,1757872240545,-151.0,0.00021917,2]
[385464639,1757872240554,-151.0,0.00021917,2]
[385464640,1757872240563,-480.0,0.00021917,2]
[385464641,1757872240573,-480.0,0.00021917,2]
[385464642,1757872240582,-480.0,0.00021917,2]
[385464643,1757872240595,-480.0,0.00021917,2]
[385464644,1757872240604,-482.80465601,0.00021917,2]
[385464645,1757872240614,-480.0,0.00021917,2]
[385464646,1757872240623,-483.03585346,0.00021917,2]
[385464647,1757872240634,-235.66425328,0.00021917,2]
[385464648,1757872240643,-480.0,0.00021917,2]
[385464649,1757872240653,-480.0,0.00021917,2]
[385464650,1757872240663,-480.0,0.00021917,2]
[385464651,1757872240672,-480.0,0.00021917,2]
[385464652,1757872240682,-480.0,0.00021917,2]
[385464653,1757872240691,-621.678102,0.00021917,2]
[385464654,1757872240701,-480.0,0.00021917,2]
[385464655,1757872240711,-480.0,0.00021917,2]
[385464656,1757872240719,-480.0,0.00021917,2]
[385464657,1757872240728,-480.0,0.00021917,2]
[385464658,1757872240738,-480.0,0.00021917,2]
[385464659,1757872240747,-480.0,0.00021917,2]
[385464660,1757872240756,-480.0,0.00021917,2]
[385464661,1757872240766,-480.0,0.00021917,2]
[385464662,1757872240776,-480.0,0.00021917,2]
[385464663,1757872240786,-480.0,0.00021917,2]
[385464664,1757872240795,-480.0,0.00021917,2]
[385464665,1757872240805,-480.0,0.00021917,2]
[385464666,1757872240824,-480.0,0.00021917,2]
[385464667,1757872240834,-483.66432483,0.00021917,2]
[385464668,1757872240843,-480.0,0.00021917,2]
[385464669,1757872240852,-480.0,0.00021917,2]
[385464670,1757872240861,-480.0,0.00021917,2]
[385464671,1757872240870,-480.0,0.00021917,2]
[385464672,1757872240879,-480.0,0.00021917,2]
[385464673,1757872240888,-480.0,0.00021917,2]
[385464674,1757872240897,-480.0,0.00021917,2]
[385464675,1757872240906,-151.0,0.00021917,2]
[385464676,1757872240915,-346.08558636,0.00021917,2]
[385464677,1757872240925,-480.0,0.00021917,2]
[385464678,1757872240934,-480.0,0.00021917,2]
[385464679,1757872240943,-480.0,0.00021917,2]
[385464680,1757872240952,-481.48922692,0.00021917,2]
[385464681,1757872240962,-480.0,0.00021917,2]
[385464682,1757872240971,-480.0,0.00021917,2]
[385464683,1757872240980,-480.0,0.00021917,2]
[385464684,1757872240989,-481.8718385,0.00021917,2]
[385464685,1757872240998,-480.0,0.00021917,2]
[385464686,1757872241007,-405.09745714,0.00021917,2]
[385464687,1757872241017,-480.0,0.00021917,2]
[385464688,1757872241026,-480.0,0.00021917,2]
[385464689,1757872241035,-480.0,0.00021917,2]
[385464690,1757872241045,-480.0,0.00021917,2]
[385464691,1757872241054,-234.39461144,0.00021917,2]
[385464692,1757872241063,-480.0,0.00021917,2]
[385464693,1757872241072,-480.0,0.00021917,2]
[385464694,1757872241081,-480.0,0.00021917,2]
[385464695,1757872241090,-480.0,0.00021917,2]
[385464696,1757872241099,-480.0,0.00021917,2]
[385464697,1757872241108,-480.0,0.00021917,2]
[385464698,1757872241117,-151.0,0.00021917,2]
[385464699,1757872241126,-159.366818,0.00021917,2]
[385464700,1757872241135,-480.0,0.00021917,2]
[385464701,1757872241144,-480.0,0.00021917,2]
[385464702,1757872241153,-572.67,0.00021917,2]
[385464703,1757872241162,-762.38,0.00021917,2]
[385464704,1757872241171,-480.0,0.00021917,2]
[385464705,1757872241182,-480.0,0.00021917,2]
[385464706,1757872241191,-480.0,0.00021917,2]
[385464707,1757872241201,-480.0,0.00021917,2]
[385464708,1757872241211,-480.0,0.00021917,2]
[385464709,1757872241220,-480.0,0.00021917,2]
[385464710,1757872241229,-480.0,0.00021917,2]
[385464711,1757872241238,-529.76015036,0.00021917,2]
[385464712,1757872241248,-480.0,0.00021917,2]
[385464713,1757872241257,-480.0,0.00021917,2]
[385464714,1757872241265,-1060.84,0.00021917,2]
[385464715,1757872241275,-493.62241222,0.00021917,2]
[385464716,1757872241284,-486.00297298,0.00021917,2]
[385464717,1757872241293,-480.0,0.00021917,2]
[385464718,1757872241303,-480.0,0.00021917,2]
[385464719,1757872241312,-480.0,0.00021917,2]
[385464720,1757872241321,-480.0,0.00021917,2]
[385464721,1757872241330,-151.0,0.00021917,2]
[385464722,1757872241340,-480.0,0.00021917,2]
[385464723,1757872241349,-151.0,0.00021917,2]
[385464724,1757872241358,-480.0,0.00021917,2]
[385464725,1757872241367,-480.0,0.00021917,2]
[385464726,1757872241376,-480.0,0.00021917,2]
[385464727,1757872241385,-480.0,0.00021917,2]
[385464728,1757872241394,-480.0,0.00021917,2]
[385464729,1757872241403,-480.0,0.00021917,2]
[385464730,1757872241412,-480.0,0.00021917,2]
[385464731,1757872241421,-480.0,0.00021917,2]
[385464732,1757872241430,-484.59745741,0.00021917,2]
[385464733,1757872241439,-480.0,0.00021917,2]
[385464734,1757872241448,-480.0,0.00021917,2]
[385464735,1757872241458,-480.0,0.00021917,2]
[385464736,1757872241467,-480.0,0.00021917,2]
[385464737,1757872241476,-491.99687363,0.00021917,2]
[385464738,1757872241486,-480.0,0.00021917,2]
[385464739,1757872241495,-490.22059249,0.00021917,2]
[385464740,1757872241504,-151.0,0.00021917,2]
[385464741,1757872241513,-151.0,0.00021917,2]
[385464742,1757872241523,-480.0,0.00021917,2]
[385464743,1757872241532,-151.0,0.00021917,2]
[385464744,1757872241541,-480.0,0.00021917,2]
[385464745,1757872241551,-480.0,0.00021917,2]
[385464746,1757872241560,-480.0,0.00021917,2]
[385464747,1757872241569,-562.86161447,0.00021917,2]
[385464748,1757872241578,-609.65,0.00021917,2]
[385464749,1757872241591,-480.0,0.00021917,2]
[385464750,1757872241600,-480.0,0.00021917,2]
[385464751,1757872241609,-480.0,0.00021917,2]
[385464752,1757872241618,-480.0,0.00021917,2]
[385464753,1757872241628,-955.92,0.00021917,2]
[385464754,1757872241637,-480.0,0.00021917,2]
[385464755,1757872241646,-676.02,0.00021917,2]
[385464756,1757872241655,-480.0,0.00021917,2]
[385464757,1757872241664,-494.38,0.00021917,2]
[385464758,1757872241675,-151.0,0.00021917,2]
[385464759,1757872241687,-480.0,0.00021917,2]
[385464760,1757872241699,-564.77069167,0.00021917,2]
[385464761,1757872241709,-151.0,0.00021917,2]
[385464762,1757872241718,-151.0,0.00021917,2]
[385464763,1757872241729,-151.0,0.00021917,2]
[385464764,1757872241738,-698.0,0.00021917,2]
[385464765,1757872241748,-480.0,0.00021917,2]
[385464766,1757872241757,-480.0,0.00021917,2]
[385464767,1757872241766,-151.789915,0.00021917,2]
[385464768,1757872241776,-546.48,0.00021917,2]
[385464769,1757872241785,-480.0,0.00021917,2]
[385464770,1757872241796,-480.0,0.00021917,2]
[385464771,1757872241806,-286.0,0.00021917,2]
[385464772,1757872241816,-480.0,0.00021917,2]
[385464773,1757872241825,-480.0,0.00021917,2]
[385464774,1757872241835,-765.56,0.00021917,2]
[385464775,1757872241844,-480.0,0.00021917,2]
[385464776,1757872241854,-773.58,0.00021917,2]
[385464777,1757872241863,-487.00281271,0.00021917,2]
[385464778,1757872241872,-480.0,0.00021917,2]
[385464779,1757872241883,-480.0,0.00021917,2]
[385464780,1757872241892,-151.0,0.00021917,2]
[385464781,1757872241903,-151.0,0.00021917,2]
[385464782,1757872241912,-151.0,0.00021917,2]
[385464783,1757872241921,-480.0,0.00021917,2]
[385464784,1757872241931,-618.99,0.00021917,2]
[385464785,1757872241940,-690.22,0.00021917,2]
[385464786,1757872241950,-151.0,0.00021917,2]
[385464787,1757872241959,-151.0,0.00021917,2]
[385464788,1757872241969,-151.0,0.00021917,2]
[385464789,1757872241979,-480.0,0.00021917,2]
[385464790,1757872241989,-151.0,0.00021917,2]
[385464791,1757872241999,-151.0,0.00021917,2]
[385464792,1757872242009,-151.0,0.00021917,2]
[385464793,1757872242019,-480.0,0.00021917,2]
[385464794,1757872242028,-151.0,0.00021917,2]
[385464795,1757872242040,-10.31591826,0.00021917,2]
[385464796,1757872242061,-140.68408174,0.00021917,2]
[385464797,1757872242071,-151.0,0.00021917,2]
[385464798,1757872242082,-480.0,0.00021917,2]
[385464799,1757872242094,-151.0,0.00021917,2]
[385464800,1757872242103,-480.0,0.00021917,2]
[385464801,1757872242114,-480.0,0.00021917,2]
[385464802,1757872242123,-480.0,0.00021917,2]
[385464803,1757872242132,-480.0,0.00021917,2]
[385464804,1757872242143,-564.15,0.00021917,2]
[385464805,1757872242152,-480.0,0.00021917,2]
[385464806,1757872242161,-480.0,0.00021917,2]
[385464807,1757872242172,-480.0,0.00021917,2]
[385464808,1757872242322,-480.0,0.00021917,2]
[385464809,1757872242332,-480.0,0.00021917,2]
[385464810,1757872242342,-480.0,0.00021917,2]
[385464811,1757872242352,-151.0,0.00021917,2]
[385464812,1757872242361,-500.0,0.00021917,2]
[385464813,1757872242371,-151.0,0.00021917,2]
[385464814,1757872242380,-151.0,0.00021917,2]
[385464815,1757872242389,-151.0,0.00021917,2]
[385464816,1757872242399,-236.07979657,0.00021917,2]
[385464817,1757872242408,-151.0,0.00021917,2]
[385464818,1757872242417,-20.63536268,0.00021917,2]
[385464847,1757872244162,-130.36463732,0.00021917,2]
[385464848,1757872244172,-271.63278668,0.00021917,2]
[385464849,1757872244183,-228.36721332,0.00021917,2]
[385464850,1757872244193,-151.0,0.00021917,2]
[385464851,1757872244203,-151.0,0.00021917,2]
[385464852,1757872244212,-174.90219073,0.00021917,2]